Cogmind - Beta 9.2 @@@ ROGUE MODE // 2019.11.28 @ 04:43:36 Player: zidji Result: Destroyed self with Grenade Launcher Performance ------------- Evolutions (0) 0 Regions Visited (2) 400 Robots Destroyed (30) 150 Value Destroyed (738) 738 Prototype IDs (2) 40 Alien Tech Used (0) 0 Bonus (0) 0 TOTAL SCORE: 1328 Bonus ------- None Cogmind --------- Core Integrity 0/250 Matter 250/300 Energy 100/100 System Corruption 0% Temperature Cool (0) Movement Walking (180) Ox2 Location -10/Mines Parts ------- > --- POWER (1) -------- Ion Engine > --- PROPULSION (2) --- Aluminum Leg Aluminum Leg > --- UTILITY (2) ------ Large Storage Unit Large Storage Unit > --- WEAPON (2) ------- Assault Rifle Grenade Launcher > --- INVENTORY (16) --- Ion Engine Light Ion Engine Aluminum Leg Aluminum Leg Medium Storage Unit Large Storage Unit Signal Interpreter Light Armor Plating Particle Gun Light Assault Rifle Light Assault Rifle Grenade Launcher Ripper Peak State ------------ > --- POWER ------------ Ion Engine > --- PROPULSION ------- Aluminum Leg Aluminum Leg > --- UTILITY ---------- Large Storage Unit Large Storage Unit > --- WEAPON ----------- Assault Rifle Ripper > --- INVENTORY -------- Ion Engine Light Ion Engine Aluminum Leg Aluminum Leg Medium Storage Unit Large Storage Unit Signal Interpreter Light Armor Plating Particle Gun Light Assault Rifle Light Assault Rifle Grenade Launcher Grenade Launcher [Rating: 11] Favorites ----------- Power Ion Engine Engine Ion Engine Power Core Light Nuclear Core Propulsion Aluminum Leg Leg Aluminum Leg Utility Large Storage Unit Storage Large Storage Unit Weapon Assault Rifle Energy Gun Medium Laser Ballistic Gun Assault Rifle Launcher Grenade Launcher Slashing Weapon Mining Claw Build | -11 -10 -10 ------- Run | Scr Mat Min Slots Evolved . | . . . Power . | . . . Propulsion . | . . . Utility . | . . . Weapon . | . . . Parts Attached 29 | 1 16 12 Power 3 | . 2 1 Engine 2 | . 1 1 Core 1 | . 1 . Reactor . | . . . Propulsion 6 | . 3 3 Treads . | . . . Leg 6 | . 3 3 Wheel . | . . . Hover . | . . . Flight . | . . . Utility 4 | . 4 . Device . | . . . Storage 4 | . 4 . Processor . | . . . Hackware . | . . . Protection . | . . . Artifact . | . . . Weapon 16 | 1 7 8 Energy Gun 4 | . 3 1 Energy Cannon . | . . . Ballistic Gun 6 | 1 1 4 Ballistic Cannon . | . . . Launcher 3 | . 1 2 Special Weapon . | . . . Impact Weapon . | . . . Slashing Weapon 3 | . 2 1 Piercing Weapon . | . . . Special Melee Weapon . | . . . Unidentified Prototypes . | . . . Parts Lost 8 | . 2 6 Power . | . . . Propulsion 3 | . . 3 Utility . | . . . Weapon 5 | . 2 3 Highest Loss Streak 4 | . 1 4 Average Slot Usage (%) 98 | . 97 99 Engine 10 | . 7 14 Core 3 | . 6 . Leg 27 | . 28 27 Storage 26 | . 25 28 Energy Gun 7 | . 10 3 Ballistic Gun 19 | . 15 23 Slashing Weapon 1 | . 1 . Naked Turns . | . . . Heaviest Build 42 | 13 41 42 Greatest Support 20 | 20 20 20 Greatest Overweight (x) 3 | . 2 3 Average Overweight (x) 1 | . 1 1 Largest Inventory Capacity 16 | 6 16 16 Average Capacity 13 | 6 12 16 Most Carried 16 | 6 16 16 Average Carried 11 | 6 10 13 Final Capacity 16 | 6 16 16 Final Carried 16 | 6 16 13 Class Distribution -------------------- 68% | Mutant 31% | Scavenger-Mutant Dominant Class ---------------- Mutant | -10/Materials Scavenger-Mutant | -10/Mines Resources | -11 -10 -10 ----------- Run | Scr Mat Min Matter Collected 737 | 200 364 173 Remotely . | . . . Salvage Created 885 | . 575 310 Parts 60 | . 37 23 Haulers Intercepted 2 | . 2 . Recyclers Shooed 1 | . . 1 Parts Field Recycled . | . . . Retrieved Matter . | . . . Parts Self-Destructed . | . . . Prevented . | . . . Kills | -11 -10 -10 ------- Run | Scr Mat Min Combat Hostiles Destroyed 22 | . 13 9 Guns 13 | . 9 4 AOE 9 | . 4 5 Classes Destroyed 6 | . 4 2 Tunneler 2 | . . 2 Hauler 2 | . 2 . Recycler 2 | . . 2 Watcher 2 | . 2 . Swarmer 6 | . 3 3 Grunt 16 | . 10 6 Best Kill Streak 3 | . 3 3 Combat Bots Only 3 | . 3 3 Max Kills in Single Turn 3 | . 3 2 Gunslinging . | . . . Exploded 3 | . 3 2 Melee . | . . . Uniques/NPCs Destroyed . | . . . Combat | -11 -10 -10 -------- Run | Scr Mat Min Damage Taken 1177 | . 639 538 Core 253 | . 81 172 Absorbed by Shields . | . . . Core Remaining (%) 100 | 100 . . Volleys Fired 97 | . 54 43 Largest 2 | . 2 2 Hottest 100 | . 100 100 Shots Fired 176 | . 100 76 Gun 168 | . 97 71 Cannon . | . . . Launcher 8 | . 3 5 Special . | . . . Kinetic 125 | . 62 63 Thermal 26 | . 18 8 Explosive 8 | . 3 5 Electromagnetic 17 | . 17 . Robot Hit Streak 9 | . 9 9 Robot Miss Streak 4 | . 4 3 Penetration Max . | . . . Secondary Targets . | . . . Shots Hit Robots 110 | . 64 46 Core Hits 53 | . 29 24 Critical Hits . | . . . Critical Kills . | . . . Critical Parts Destroyed . | . . . Melee Attacks 4 | . 1 3 Impact . | . . . Slashing 4 | . 1 3 Piercing . | . . . Sneak Attacks . | . . . Combat Hostiles . | . . . Follow-up Attacks . | . . . Damage Inflicted 1763 | . 1101 662 Guns 1161 | . 768 393 Cannons . | . . . Explosions 600 | . 333 267 Melee . | . . . Ramming 2 | . . 2 Kinetic 822 | . 467 355 Thermal 202 | . 164 38 Explosive 572 | . 305 267 Electromagnetic 165 | . 165 . Impact . | . . . Slashing . | . . . Piercing . | . . . Highest Corruption . | . . . Average Corruption . | . . . Corruption Purged . | . . . Overload Shots . | . . . Overflow Damage 30 | . 30 . Projectiles . | . . . Explosions 30 | . 30 . Melee . | . . . Knockbacks . | . . . Impact . | . . . Kinetic . | . . . Secondary . | . . . Self-Inflicted Damage 84 | . 24 60 Shots 4 | . 1 3 Rammed 1 | . . 1 Targets Rammed 1 | . . 1 Kicked . | . . . Crushed . | . . . Highest Temperature 174 | . 174 55 Average Temperature 34 | . 46 14 Received Heat Transfer 564 | . 303 261 Siege Activations . | . . . Robots Corrupted . | . . . Combat Hostiles . | . . . Parts Fried . | . . . Impact Corruptions . | . . . Robots Melted . | . . . Combat Hostiles . | . . . Parts Melted . | . . . Heat Transferred 568 | . 457 111 Parts Sabotaged . | . . . Parts Stolen . | . . . Parts Stripped . | . . . Power Chain Reactions 1 | . 1 . Missiles Intercepted . | . . . Alert | -11 -10 -10 ------- Run | Scr Mat Min Peak Influence 195 | . 195 156 Average Influence 49 | . 44 54 Maximum Alert Level . | . . . Low Security (%) 100 | 100 100 100 Level 1 . | . . . Level 2 . | . . . Level 3 . | . . . Level 4 . | . . . Level 5 . | . . . High Security . | . . . Max Security . | . . . Squads Dispatched 4 | . 4 . Investigation 1 | . 1 . Extermination . | . . . Reinforcement 3 | . 3 . Assault . | . . . Garrison . | . . . Intercept . | . . . Construction Impeded . | . . . Haulers Reinforced . | . . . Stealth | -11 -10 -10 --------- Run | Scr Mat Min Distress Signals 1 | . . 1 Communications Jammed . | . . . Distress Signals . | . . . Times Spotted 37 | . 28 9 Peak Tracking Total 4 | . 4 3 Tactical Retreats 3 | . 3 . Traps | -11 -10 -10 ------- Run | Scr Mat Min Traps Triggered 1 | . 1 . Indirectly . | . . . Trap Hack Attempts . | . . . Triggered . | . . . Disarmed . | . . . Reprogrammed . | . . . Reused . | . . . Traps Extracted . | . . . Installed . | . . . Triggered . | . . . Machines | -11 -10 -10 ---------- Run | Scr Mat Min Machines Disabled 2 | . . 2 Max in Single Turn 1 | . . 1 Machines Sabotaged . | . . . Garrisons Compromised . | . . . Overloaded Fab Kills . | . . . Fab Network Shutdowns . | . . . Hacking | -11 -10 -10 --------- Run | Scr Mat Min Machines Accessed 5 | . 5 . Terminals 5 | . 5 . Fabricators . | . . . Repair Stations . | . . . Recycling Units . | . . . Scanalyzers . | . . . Garrison Access . | . . . Total Hacks 11 | . 11 . Successful 6 | . 6 . Failed 5 | . 5 . Catastrophic 1 | . 1 . Database Lockouts . | . . . Manual 9 | . 9 . Terminals 11 | . 11 . Fabricators . | . . . Repair Stations . | . . . Recycling Units . | . . . Scanalyzers . | . . . Garrison Access . | . . . Terminal Hacks 2 | . 2 . Part Schematic 1 | . 1 . Prototype ID Bank 1 | . 1 . Fabricator Hacks . | . . . Repair Station Hacks . | . . . Recycling Unit Hacks . | . . . Scanalyzer . | . . . Garrison Access Hacks . | . . . Unauthorized Hacks 11 | . 11 . Terminals 4 | . 4 . Track 1 | . 1 . Botnet 3 | . 3 . Fabricators . | . . . Repair Stations . | . . . Recycling Units . | . . . Scanalyzers . | . . . Garrison Access . | . . . Data Cores Recovered . | . . . Used . | . . . Hacking Detections 5 | . 5 . Full Trace Events . | . . . Feedback Events . | . . . Feedback Blocked . | . . . Robot Schematics Acquired . | . . . Robots Built . | . . . Matter . | . . . Time . | . . . Total Robot Build Rating . | . . . Part Schematics Acquired 1 | . 1 . Parts Built . | . . . Matter . | . . . Time . | . . . Total Part Build Rating . | . . . Parts Repaired . | . . . Time . | . . . Parts Recycled . | . . . Recycled Matter . | . . . Retrieved Matter . | . . . Retrieved Components . | . . . Parts Scanalyzed . | . . . Part Schematics Acquired . | . . . Parts Damaged . | . . . Bothacking | -11 -10 -10 ------------ Run | Scr Mat Min Used RIF Installer . | . . . Robots Hacked . | . . . Non-combat . | . . . Combat . | . . . Robot Hacks Applied . | . . . Relay Couplers Released . | . . . Robots Rewired . | . . . Allies Hacked . | . . . Hacks Repelled . | . . . Allies | -11 -10 -10 -------- Run | Scr Mat Min Total Allies . | . . . Largest Group . | . . . Highest-Rated Group . | . . . Highest-Rated Ally . | . . . Total Orders . | . . . Ally Attacks . | . . . Total Damage . | . . . Kills . | . . . Allies Corrupted . | . . . Allies Melted . | . . . Intel | -11 -10 -10 ------- Run | Scr Mat Min Robot Analysis Total . | . . . Derelict Logs Recovered 2 | . . 2 Drone Launches . | . . . Drone Recoveries . | . . . Exploration | -11 -10 -10 ------------- Run | Scr Mat Min Turns Passed 2296 | 2 1250 1044 Spaces Moved 1197 | 1 633 563 Core . | . . . Treads . | . . . Legs 1197 | 1 633 563 Wheels . | . . . Hover . | . . . Flight . | . . . Fastest Speed 120 | 120 120 150 Average Speed 155 | 120 156 154 Slowest Speed 210 | 120 180 210 Overloaded Moves . | . . . Propulsion Burnouts . | . . . Robots Hopped . | . . . Cave-ins Triggered . | . . . Exploration Rate (%) 63 | 1 98 91 Regions Visited 2 Branch Regions 1 Pre-discovered Areas 1 | . . 1 Known Exits Taken . | . . . Unknown Exits Taken 2 | 1 1 . Scrap Searched 2 | . . 2 Spaces Dug 1 | . 1 . Terrain Destroyed 53 | . 26 27 Melee 1 | . 1 . Projectile . | . . . AOE 52 | . 25 27 Actions | -11 -10 -10 --------- Run | Scr Mat Min Total 1461 | 1 793 667 Wait 102 | . 65 37 Move 1195 | . 632 563 Hop . | . . . Pick Up 19 | . 14 5 Fast Attach 3 | . 3 . Attach 8 | . 2 6 Detach 1 | . 1 . Swap 18 | 1 11 6 Drop 13 | . 10 3 Fire 97 | . 54 43 Melee 4 | . 1 3 Ram . | . . . Kick 1 | . . 1 Crush . | . . . Escape Stasis . | . . . Rewire . | . . . Trap . | . . . Miscellaneous . | . . . Route ------- -11/Scrapyard -10/Materials (discovered 4 exits: [*Mat x3] / [*Min]) -10/Mines (discovered 1 exit: [*Mat]) History --------- Turn | Location | Event 3 | -11/Scrapyard | Discovered new exit (range 0) 3 | -11/Scrapyard | Entered Materials 249 | -10/Materials | Discovered new exit (range 3) 307 | -10/Materials | Build established: Mutant 485 | -10/Materials | Discovered new exit (range 16) 611 | -10/Materials | Discovered new exit (range 3) 1183 | -10/Materials | Discovered new exit (range 13) 1253 | -10/Materials | Entered Mines 1414 | -10/Mines | Core integrity fell below 50% 1470 | -10/Mines | Core integrity fell below 20% 1528 | -10/Mines | Lost 4 parts (3n1w) 1826 | -10/Mines | Build established: Scavenger-Mutant 1912 | -10/Mines | Learned location of Zion (-7) 1913 | -10/Mines | Learned Materials stockpile data 1949 | -10/Mines | Found a hidden stash of uninstalled traps 2023 | -10/Mines | A weapon hastily lodged in a ceiling crevice suddenly fell to the ground 2153 | -10/Mines | Discovered new exit (range 6) 2240 | -10/Mines | Excavation squad dispatched 2240 | -10/Mines | A large section of the Mines collapsed 2297 | -10/Mines | Destroyed self with Grenade Launcher Last Messages --------------- 02211_ U-05 Engineer builds a Wall. 02213_ U-05 Engineer lays Concrete. 02216_ T-07 Excavator is excavating. 02218_ U-05 Engineer lays Concrete. 02219_ U-05 Engineer builds a Wall. 02220_ T-07 Excavator is excavating. 02222_ U-05 Engineer lays Concrete. 02223_ U-05 Engineer builds a Wall. 02225_ T-07 Excavator is excavating. 02227_ U-05 Engineer lays Concrete. 02228_ U-05 Engineer builds a Wall. 02229_ T-07 Excavator is excavating. 02229_ U-05 Engineer lays Concrete. 02240_ Heat Sink crushed. 02240_ ALERT: Suspicious cave-in, suspected derelict activity in mines. Dispatching escorted excavation squad. 02290_ G-34 Mercenary destroyed. 02290_ Laser Drill disabled. 02290_ T-07 Excavator destroyed. 02297_ G-34 Mercenary destroyed. Map ----- +----------------------------------------------------+ | | | | | | | | | ?????????????????????????????????????????????????? | | ?????????????????????????????????????????????????? | | ???????????????????????????????###???????????????? | | ??????????????????????????????## ##?????????????? | | ??????????????????????????????# #?????????????? | | ??????????????????????????????# #?????????????? | | ???????????????????????????????# ##????????????? | | #######????????????????????????# ##???????????? | | ##???????????????????????## ##??????????? | | ###????????????###???????# #??????????? | | ##??????????# ##??##### #??????????? | | #???####### #??# =%! ##?????????? | | #??# #??# !! #?????????? | | #### #??# #???# ### < #?????????? | | ##???# ##??# #????# #?## ##?????????? | | ##????#####??## #?????# #???####??????????? | | #??????????## ##????# ####??####???????? | | #?????????## #?????# #### ##??????? | | #####?????# ##????# ! ## ##?????? | | #?????# ###????# %= *%= ##????? | | #?????# ##??##### #????? | | ##! ##????## ##???# @ %* #### #????? | | ## ###???## #????# ### ##??# ##???? | | ## ###### #????# ### ## #???## ##??? | | ### ######### ## ##??###????# #??? | | #?# ## # #????????## #??? | | #### # #"########## #????##### #??? | | ??# ###"##???????#####???## ##?? | | ??# #####??????????????# ##? | | ??## ##?????###?????# #? | | #??##### #???## ##????## #### #? | | ##?????## #??## #?????## #???# ##? | | ##????## ##?## #?????## #????###?? | | #???## ###### #??????# #????????? | | #??## ##?## ##??????# ##????????? | | #??# #?## ## ##??????## #?????????? | | #??# ### ### #?????### ##?????????? | | ##??## #?# #????##& ##??????????? | | #???# & ### ###### &/ #???????????? | | ##???# #### ### #???????????? | | #????# ### ##??# #?# ####### ##???????????? | | #?#### #?# #???# #?# #?????## # #????????????? | | ?## ### #???# #?# #??????#### #????????????? | | ## ## #???# #?# #???####### #????????????? | | # # #???# ### #???# #????????????? | | ##??# #???# #######????????????? | +----------------------------------------------------+ Best States ------------- Heat Dissipation 25 Energy Generation 14 Energy Capacity 250 Matter Stores 300 Matter Capacity 300 Sight Range 16 Terrain Scan Density 10 Evasion (%) 40 Item Schematics ----------------- Hcp. Storage Unit | -10/Materials | Hacked Robot Schematics ------------------ None Fabricated ------------ Nothing Alien Tech Used ----------------- None Achievements -------------- None Challenges ------------ None Game ------ Seed GuidanceFissionReplicator Manual? 0 Play Time 00:18:45 Cumulative 114.0 hours Start 2019.11.28 @ 04:27:34 End 2019.11.28 @ 04:43:36 Sessions 1 Manual Loads 0 Difficulty Rogue Special Mode None Game No. 91 Rogue 91 Adventurer 0 Explorer 0 Win Type - Total 1 Types 1/0/0/0/0/0/0 Lore% 39 Gallery% 44 Achievement% 41 Wizard Run 0 Options --------- ASCII 0 Keyboard 1 Movement Vi Keybinds 0 Fullscreen 1 Font 14/SmallcapsGlow Map View 84x54 Tactical HUD 1 Map Filters NONE Filters NONE Steam 1 RUN: 53d9b4c6-7026-4dfb-a8f8-67f802b49cd0